bitfinex/quotes_ETHUSD_20250725
["timestamp","ask_amount","ask_price","bid_price","bid_amount"]
[1753456512158,4.598,3637.6,3636.9,0.5645]
[1753456512159,3.02748477,3637.5,3636.9,2.74954579]
[1753456512465,3.02748477,3637.5,3637.1,0.1376]
[1753456512771,3.36828477,3637.5,3636.6,0.001]
[1753456512963,0.1376,3637.2,3636.7,2.88733953]
[1753456513162,4.598,3637.1,3636.8,2.74967003]
[1753456513364,4.62548477,3637.1,3636.8,2.74967003]
[1753456513872,4.62548477,3637.1,3636.7,2.88732189]
[1753456514075,4.62548477,3637.1,3636.8,2.74966948]
[1753456514777,4.62548477,3637.1,3636.7,0.1376]
[1753456515146,5.7196937,3637.1,3636.6,0.001]
[1753456515371,0.1376,3636.9,3636.6,0.001]
[1753456515553,0.0217,3636.7,3636.6,0.001]
[1753456515768,11.05604564,3636.7,3636.6,0.001]
[1753456515942,11.92802178,3636.7,3636.6,0.001]
[1753456516276,3.1593,3636.7,3636.6,0.001]
[1753456516479,10.36844564,3636.7,3636.6,0.001]
[1753456516774,10.50604564,3636.7,3636.6,0.001]
[1753456517158,11.37854564,3636.7,3636.6,0.001]
[1753456517336,11.71934564,3636.7,3636.6,0.001]
[1753456517540,12.72683026,3636.7,3636.6,0.001]
[1753456518585,8.12983026,3636.7,3636.6,0.001]
[1753456518800,12.72683026,3636.7,3636.6,0.001]
[1753456519698,12.06353026,3636.7,3636.6,0.001]
[1753456520001,12.72683026,3636.7,3636.6,0.001]
[1753456520686,12.38603026,3636.7,3636.6,0.001]
[1753456520865,12.38603026,3636.7,3636.6,1e-08]
[1753456520866,19.76683026,3636.7,3636.6,1e-08]
[1753456521066,19.85284898,3636.7,3636.6,1e-08]
[1753456521271,19.76683026,3636.7,3636.6,1e-08]
[1753456521483,19.85285246,3636.7,3636.6,1e-08]
[1753456522796,19.85285576,3636.7,3636.6,1e-08]
[1753456522998,19.85285313,3636.7,3636.6,1e-08]
[1753456523187,19.76683026,3636.7,3636.6,1e-08]
[1753456523695,3.32197502,3636.0,3635.9,0.001]
[1753456523896,11.41625729,3636.0,3635.9,0.001]
[1753456524093,12.05207252,3636.0,3635.9,0.001]
[1753456524985,12.05307252,3636.0,3635.9,0.001]
[1753456526400,11.38977252,3636.0,3635.9,0.001]
[1753456526897,11.71227252,3636.0,3635.9,0.001]
[1753456527067,7.11427252,3636.0,3635.9,0.001]
[1753456527263,4.04095243,3636.0,3635.9,0.001]
[1753456527468,7.70117252,3636.0,3635.9,0.001]
[1753456527677,2.74999904,3636.4,3635.9,0.001]
[1753456527968,2.75020688,3636.1,3635.9,1.0198]
[1753456528299,2.75013614,3636.2,3635.9,0.001]
[1753456528602,4.597,3636.1,3635.9,0.001]
[1753456528799,4.597,3636.1,3636.0,1.0188]
[1753456528963,10.34719938,3636.1,3636.0,1.0188]
[1753456529302,5.75019938,3636.1,3636.0,1.0188]
[1753456529797,7.597,3636.1,3636.0,1.0188]
[1753456529974,1.00748462,3636.7,3636.1,2.75013017]
[1753456530164,6.602,3637.1,3636.2,1.0188]
[1753456530365,2.74975116,3636.7,3636.3,1.0188]
[1753456530571,0.68985477,3637.0,3636.4,1.0188]
[1753456530572,4.596,3636.6,3636.4,1.0188]
[1753456530904,4.596,3636.6,3636.5,1.0188]
[1753456531103,6.602,3637.1,3636.5,3.76868064]
[1753456531104,9.35146642,3637.1,3636.5,3.76868064]
[1753456531270,3.84971044,3638.5,3635.9,0.8012]
[1753456531271,9.35288352,3637.9,3636.6,1.0188]
[1753456531599,9.35288352,3637.9,3636.7,1.7744]
[1753456531600,5.53345835,3637.8,3636.7,1.7744]
[1753456531805,4.596,3637.7,3636.7,0.7556]
[1753456531994,4.596,3637.6,3637.4,2.74921615]
[1753456532194,4.596,3637.6,3637.5,1.0188]
[1753456532696,6.604,3637.9,3637.6,2.74906167]
[1753456533001,4.596,3637.8,3637.7,1.0188]
[1753456533223,6.604,3637.9,3637.7,2.7489865]
[1753456533496,4.595,3637.8,3637.7,2.74893716]
[1753456533901,4.595,3637.8,3637.6,2.74905469]
[1753456534101,0.0217,3639.0,3637.8,0.8312]
[1753456534301,6.604,3639.2,3637.9,1.0188]
[1753456534489,4.595,3639.1,3638.5,2.74832733]
[1753456534870,4.594,3639.0,3638.6,1.0188]
[1753456535096,4.594,3639.0,3638.7,1.0188]
[1753456535292,4.594,3639.0,3638.8,1.0188]
[1753456535493,4.594,3639.0,3638.9,1.0188]
[1753456535901,4.594,3639.0,3638.9,3.76688321]
[1753456536173,4.594,3639.0,3638.9,1.0188]
[1753456537005,4.594,3639.0,3638.9,0.5483]
[1753456537304,4.7316,3639.0,3638.9,0.9797]
[1753456537874,4.594,3639.0,3638.9,3.72778321]
[1753456538097,0.002,3639.4,3639.1,2.74790641]
[1753456538298,0.002,3639.4,3638.9,2.8856721]
[1753456538500,0.002,3639.4,3639.1,0.9094]
[1753456538808,4.592,3639.3,3639.2,2.74785667]
[1753456539004,4.592,3639.3,3639.2,0.9797]
[1753456540334,4.592,3639.3,3639.2,3.72755667]
[1753456540615,4.592,3639.3,3639.2,0.9797]
[1753456540815,4.592,3639.3,3639.2,0.5483]
[1753456541018,5.06516,3639.3,3638.7,0.9797]
[1753456541184,0.1376,3638.9,3638.7,0.5483]
[1753456541385,0.1376,3638.9,3638.8,0.9797]
[1753456541717,0.002,3639.4,3638.8,0.9797]
[1753456541878,0.1376,3639.1,3638.8,0.9797]
[1753456542081,4.61748477,3639.0,3638.8,0.5483]
[1753456542507,0.1376,3639.1,3639.0,2.74800769]
[1753456542714,4.59,3639.2,3638.9,1.1173]
[1753456542890,0.02748477,3639.1,3638.9,0.5483]
[1753456543096,4.7276,3639.2,3638.9,2.74803648]
[1753456543287,4.7276,3639.2,3639.0,3.72770278]
[1753456543621,0.02748477,3639.1,3638.6,1.3396]
[1753456543819,0.1376,3638.9,3638.6,0.7913]
[1753456543988,4.589,3638.8,3638.7,0.5483]
[1753456544189,4.589,3638.8,3638.7,3.72793425]
[1753456544390,4.589,3638.8,3638.7,3.86553425]
[1753456544609,4.589,3639.0,3638.9,2.74808321]
[1753456544922,4.589,3639.0,3638.9,3.72778321]
[1753456545133,4.589,3639.0,3638.9,3.86538321]
[1753456545643,4.589,3639.0,3638.6,0.7913]
[1753456545794,4.7266,3639.0,3638.7,0.5483]
[1753456546139,4.7266,3639.0,3638.8,0.5483]
[1753456546692,4.7266,3639.0,3638.5,0.1376]
[1753456546693,2.74813347,3638.9,3638.5,0.1376]
[1753456547000,0.02748477,3638.9,3638.3,0.5483]
[1753456547308,4.587,3638.8,3638.7,2.74823425]
[1753456547514,0.002,3639.4,3639.0,2.74795899]
[1753456547727,4.7246,3639.3,3639.1,0.5483]
[1753456547895,0.02748477,3639.2,3639.1,2.74793218]
[1753456548093,4.587,3639.3,3639.2,2.74785667]
[1753456548327,4.587,3639.3,3639.2,3.17925667]
[1753456548526,4.587,3639.3,3639.2,3.72755667]
[1753456548826,0.002,3639.4,3639.3,2.74778116]
[1753456548992,4.589,3639.4,3639.1,0.1376]
[1753456549442,4.589,3639.4,3639.2,0.5483]
[1753456549597,4.589,3639.4,3639.2,3.29612596]
[1753456550132,4.589,3639.4,3639.2,3.29612527]
[1753456550295,4.589,3639.4,3639.2,0.5483]
[1753456550630,4.589,3639.4,3639.3,2.74778116]
[1753456551105,4.589,3639.4,3639.2,3.29613335]
[1753456551300,4.589,3639.4,3638.5,3.29666179]
[1753456551301,5.06440848,3639.4,3638.5,3.29666179]
[1753456551511,5.06440848,3639.4,3638.7,2.74822447]
[1753456551512,0.02748477,3639.3,3638.7,2.74822447]
[1753456551721,5.06440848,3639.4,3638.5,0.5483]
[1753456551895,4.589,3639.4,3638.9,2.74804885]
[1753456552096,0.002,3639.2,3639.1,2.74793218]
[1753456552702,0.002,3639.2,3639.1,3.54443218]
[1753456552919,0.002,3639.2,3639.1,4.52413218]
[1753456553230,0.002,3639.2,3639.1,5.25134753]
[1753456554102,0.002,3639.4,3639.3,2.74778116]
[1753456554302,0.002,3639.4,3639.3,3.57048116]
[1753456554531,0.002,3639.4,3639.3,4.55018116]
[1753456557120,1e-08,3639.4,3639.3,7.55018116]
[1753456557334,1e-08,3639.4,3639.3,8.65546189]
[1753456560615,1e-08,3639.4,3639.3,13.23646189]
[1753456561340,1e-08,3639.4,3639.3,13.37406189]
[1753456562232,0.002,3640.0,3639.9,3.53422822]
[1753456562415,0.002,3640.0,3639.9,8.25182822]
[1753456562742,0.002,3640.1,3639.9,13.53759767]
[1753456563043,0.3029,3641.9,3640.7,2.74672453]
[1753456563229,0.002,3641.5,3640.7,3.54902453]
[1753456563412,0.002,3641.5,3640.7,4.66632453]
[1753456566041,0.3029,3641.3,3640.7,2.88432453]
[1753456566261,0.02748477,3641.2,3640.7,2.88432453]
[1753456566422,0.04918477,3641.2,3639.9,1.10267194]
[1753456566751,3.39042715,3640.7,3640.0,2.7472065]
[1753456566910,3.39042715,3640.7,3638.9,3.33215018]
[1753456566911,0.0217,3640.5,3639.7,2.74741276]
[1753456567111,0.0217,3640.5,3639.5,0.5841]
[1753456567112,0.3246,3640.5,3639.5,0.5841]
[1753456567312,0.002,3640.8,3639.6,0.45667554]
[1753456567613,0.002,3640.8,3640.7,2.74672453]
[1753456568133,0.002,3640.8,3640.7,3.33082453]
[1753456568310,0.002,3640.8,3640.7,3.76002453]
[1753456568715,0.002,3640.8,3640.7,2.74672453]
[1753456569639,0.002,3640.8,3640.7,3.33082453]
[1753456571361,0.002,3640.8,3640.7,4.71798871]
[1753456571511,0.002,3640.8,3640.7,3.52612453]
[1753456572046,0.002,3640.8,3640.7,2.74672453]
[1753456572512,0.002,3640.8,3640.7,3.76002453]
[1753456573141,0.002,3640.8,3640.7,3.78749177]
[1753456573628,0.002,3640.8,3640.7,3.76002453]
[1753456574149,0.002,3640.9,3640.8,5.74664908]
[1753456574150,1e-08,3640.9,3640.8,5.74664908]
[1753456574351,1e-08,3640.9,3640.8,12.11934908]
[1753456575857,1e-08,3640.9,3640.8,7.54634908]
[1753456576033,1e-08,3640.9,3640.8,12.11834908]
[1753456576438,1e-08,3640.9,3640.8,12.25594908]
[1753456576749,1e-08,3640.9,3640.8,14.14198126]
[1753456578282,1e-08,3641.5,3641.4,2.74619651]
[1753456578565,1e-08,3641.7,3641.6,5.74604569]
[1753456578728,1e-08,3641.7,3641.6,10.31604569]
[1753456578927,1e-08,3641.7,3641.6,12.71595991]
[1753456579373,1e-08,3641.7,3641.6,13.51985991]
[1753456579578,1e-08,3642.3,3642.2,2.74559332]
[1753456579776,1e-08,3642.3,3642.2,11.07519332]
[1753456579940,1e-08,3642.3,3642.2,12.63849332]
[1753456580256,0.0217,3644.0,3643.9,2.74431241]
[1753456580421,0.0217,3644.0,3643.5,4.569]
[1753456580621,0.0217,3644.0,3643.5,2.74455224]
[1753456580827,0.6245,3643.9,3643.4,2.74461706]
[1753456581052,0.6245,3643.8,3642.4,0.5841]
[1753456581254,3.3689345,3643.8,3643.1,2.74486411]
[1753456581554,0.31118477,3643.9,3642.9,0.5841]
[1753456581759,0.31118477,3643.9,3642.4,0.7596]
[1753456581760,0.2837,3643.8,3642.4,0.7596]
[1753456581959,0.0217,3643.2,3642.7,0.5]
[1753456582146,0.6245,3643.1,3642.2,2.7455197]
[1753456582347,0.65029501,3643.0,3642.0,0.7596]
[1753456582549,0.2837,3643.1,3642.0,4.567]
[1753456582726,0.2837,3643.1,3642.4,2.7454373]
[1753456583062,0.0217,3643.6,3643.3,2.74474556]
[1753456583220,0.0217,3643.6,3643.5,2.74461369]
[1753456583426,0.0217,3643.6,3643.4,2.74467062]
[1753456583855,0.0217,3643.6,3643.3,2.74474656]
[1753456584053,0.0217,3643.6,3643.4,2.74467381]
[1753456584236,0.0217,3643.6,3643.5,2.74461369]
[1753456585027,0.0217,3643.6,3643.0,4.566]
[1753456585028,0.0217,3644.4,3643.0,4.566]
[1753456585240,0.0217,3644.4,3643.7,2.74440542]
[1753456585241,3.5384134,3644.4,3643.7,2.74440542]
[1753456585474,3.5384134,3644.4,3643.1,2.74491504]
[1753456585475,3.79446199,3644.4,3643.9,2.744305]
[1753456585632,0.79446199,3644.4,3643.9,2.744305]
[1753456585970,2.15562504,3647.5,3643.1,0.4292]
[1753456585971,0.2837,3645.6,3644.0,5.60574237]
[1753456586143,0.3408,3645.5,3644.0,1.0133]
[1753456586491,0.0217,3645.2,3644.0,5.1491]
[1753456586772,0.65198477,3645.1,3644.0,0.5841]
[1753456586942,2.74348422,3645.0,3644.3,2.74399141]
[1753456587128,0.0217,3644.8,3644.1,2.74415947]
[1753456587328,0.0217,3644.8,3643.8,0.5841]
[1753456587525,2.74373166,3644.7,3643.9,2.74431241]
[1753456587762,0.0217,3644.8,3643.8,0.5841]
[1753456587763,0.55089945,3644.6,3643.8,0.5841]
[1753456587967,0.0217,3644.8,3643.5,5.1481]
[1753456588166,2.74373405,3644.7,3643.9,2.74425785]
[1753456588472,0.1368,3644.6,3644.1,0.1376]
[1753456588756,0.1368,3644.6,3644.1,0.7217]
[1753456588958,0.1368,3644.6,3644.1,0.1376]
[1753456589187,0.0217,3644.5,3644.1,0.1376]
[1753456589772,0.0217,3644.5,3644.1,2.88175564]
[1753456589979,0.0217,3644.5,3644.2,2.74408434]
[1753456590152,0.1368,3644.6,3644.2,0.5841]
[1753456590473,0.1368,3644.6,3644.1,0.1376]
[1753456590650,0.42701508,3644.6,3644.1,0.1376]
[1753456590842,0.1368,3644.6,3644.1,0.1376]
[1753456591176,2.74333554,3645.2,3644.5,2.88060199]
[1753456591344,2.74333554,3645.2,3644.5,0.1368]
[1753456591345,0.1368,3645.0,3644.5,0.1368]
[1753456591977,0.04918477,3645.3,3643.8,0.4292]
[1753456591978,0.0217,3645.3,3644.6,1.0133]
[1753456592139,0.1585,3645.3,3644.8,0.1368]
[1753456592344,0.1585,3645.3,3645.1,2.74335961]
[1753456592545,0.1585,3645.3,3644.8,0.1368]
[1753456592901,0.1368,3645.3,3644.8,0.1368]
[1753456593081,0.1368,3645.3,3645.2,2.74333369]
[1753456593452,0.13586118,3646.1,3645.2,2.74333369]
[1753456593453,6.59,3646.6,3645.5,2.74304732]
[1753456593640,0.1368,3646.2,3645.2,1.17308586]
[1753456593841,0.1368,3646.2,3645.7,0.1368]
[1753456594275,0.1368,3646.2,3645.8,2.74288181]
[1753456594454,0.1368,3646.2,3645.7,2.87973512]
[1753456594661,0.1368,3646.2,3645.8,2.74287619]
[1753456594845,0.1368,3646.2,3645.7,2.87973632]
[1753456595040,0.1368,3646.2,3645.9,2.74280685]
[1753456595244,0.1368,3646.2,3645.8,2.74285604]
[1753456595663,0.1368,3646.2,3645.7,0.7209]
[1753456595872,0.1368,3646.2,3645.7,3.4638291]
[1753456596096,0.1368,3646.2,3645.7,0.7209]
[1753456596258,0.1368,3646.2,3645.9,2.74274764]
[1753456596442,0.1368,3646.2,3646.0,3.31410687]
[1753456596652,0.1368,3646.4,3646.0,3.77820687]
[1753456596858,0.1368,3646.4,3646.1,2.74264368]
[1753456597083,0.1368,3646.4,3646.1,0.5714]
[1753456597292,0.002,3646.8,3646.3,0.1368]
[1753456597502,0.002,3646.8,3646.3,2.8792932]
[1753456597792,0.002,3646.8,3646.4,3.77793089]
[1753456597994,0.002,3646.8,3646.5,2.74229726]
[1753456598156,0.002,3646.8,3646.7,2.74220528]
[1753456598503,0.002,3646.8,3646.6,0.1368]
[1753456599889,0.002,3646.8,3646.1,1.0355]
[1753456602064,0.002,3646.8,3646.5,1.1723]
[1753456602273,4.556,3646.8,3646.6,0.5714]
[1753456602690,4.556,3646.8,3646.5,0.1368]
[1753456602896,4.556,3646.8,3646.5,2.87915326]
[1753456603087,4.556,3646.8,3646.5,0.1368]
[1753456603088,0.002,3646.8,3646.5,0.1368]
[1753456603296,0.002,3646.8,3646.5,2.87914365]
[1753456603507,0.002,3646.8,3646.5,0.1368]
[1753456603963,0.002,3646.8,3646.6,3.31368045]
[1753456604503,0.002,3646.8,3646.5,0.1368]
[1753456605896,0.002,3646.8,3645.9,2.74279429]
[1753456606097,0.1368,3646.5,3645.5,0.5714]
[1753456606306,0.6275,3646.7,3645.7,0.1368]
[1753456606489,0.1368,3646.3,3645.8,0.5714]
[1753456606665,0.0217,3646.7,3645.8,1.0355]
[1753456606989,0.1368,3646.5,3645.9,2.87955818]
[1753456607190,0.1368,3646.5,3645.9,2.87953731]
[1753456607400,0.1368,3646.5,3645.9,0.1368]
[1753456607610,0.60795,3646.5,3645.9,0.1368]
[1753456607920,0.1368,3646.2,3645.7,0.1368]
[1753456608395,0.1368,3645.8,3645.3,0.1368]
[1753456608594,4.55,3645.7,3645.0,0.55818854]
[1753456608795,4.6868,3645.6,3645.1,0.1368]
[1753456609102,0.1368,3645.4,3644.7,2.74365367]
[1753456609297,0.02748477,3645.3,3644.8,0.1368]
[1753456609592,0.1368,3645.4,3644.1,2.74414449]
[1753456609593,0.02748477,3645.2,3644.9,0.5]
[1753456609903,0.02748477,3645.2,3644.1,0.4641]
[1753456609904,2.74335045,3645.2,3644.5,2.74386061]
[1753456610066,0.1368,3644.9,3644.5,2.74386061]
[1753456610426,0.1368,3644.9,3644.4,2.8807088]
[1753456610567,0.04918477,3644.8,3644.4,0.1368]
[1753456610908,0.04918477,3644.8,3642.8,2.74509329]
[1753456610909,0.0217,3644.0,3643.3,0.1376]
[1753456611205,0.1376,3643.5,3642.9,2.88265525]
[1753456611362,0.1376,3643.5,3643.0,2.74493425]
[1753456611562,0.0217,3644.0,3643.0,1.0355]
[1753456611563,4.549,3643.4,3643.0,1.0355]
[1753456611777,4.6866,3643.6,3643.1,3.78041433]
[1753456611980,4.6866,3643.6,3643.2,0.5714]
[1753456612415,7.43115228,3643.6,3643.2,0.5714]
[1753456612712,4.6866,3643.6,3643.2,0.5714]
[1753456612894,4.6876,3643.6,3643.3,0.5714]
[1753456613094,4.6876,3643.6,3643.2,0.4641]
[1753456613293,4.6876,3643.6,3643.3,0.5714]
[1753456613492,0.0217,3644.0,3643.6,2.74447993]
[1753456613706,4.5707,3644.0,3643.7,2.74445212]
[1753456613902,4.5707,3644.0,3643.3,0.37803356]
[1753456613903,4.549,3644.0,3643.8,3.77988466]
[1753456614104,0.0217,3644.4,3643.9,3.31571241]
[1753456614315,4.549,3644.3,3644.2,2.74408649]
[1753456614519,4.549,3644.3,3643.9,2.7442981]
[1753456614698,4.549,3644.3,3644.2,2.74408649]
[1753456615096,0.0217,3644.8,3644.2,1.0355]
[1753456615326,4.5697,3644.8,3644.2,1.0355]
[1753456615495,0.45697,3644.7,3644.2,0.5714]
[1753456615699,0.45697,3644.7,3643.8,1.0355]
[1753456616016,0.02748477,3644.6,3644.0,2.74421203]
[1753456616183,0.85568477,3644.6,3643.3,0.5714]
[1753456616384,0.85568477,3644.6,3643.7,2.74444171]
[1753456616385,0.0217,3644.2,3643.7,2.74444171]
[1753456616589,4.548,3644.1,3643.7,2.74444171]
[1753456616786,4.548,3644.1,3643.8,2.74432753]
[1753456617123,0.35326465,3644.2,3643.9,0.5714]
[1753456617290,4.548,3644.0,3643.9,3.31571241]
[1753456617822,4.547,3644.1,3643.9,0.5714]
[1753456618118,4.547,3644.1,3643.5,2.74454252]
[1753456618332,0.02748477,3644.0,3643.6,2.74453446]
[1753456618629,4.547,3644.1,3643.3,0.5714]
[1753456618924,5.00387,3644.1,3643.8,2.74437883]
[1753456619158,2.74363869,3644.8,3643.9,0.5714]
[1753456619159,0.45697,3644.7,3643.9,0.5714]
[1753456619297,4.547,3644.7,3643.9,1.0355]
[1753456619638,0.0217,3645.2,3644.0,0.5714]
[1753456619794,4.547,3644.8,3644.0,1.0355]
[1753456620115,4.547,3644.8,3644.0,0.4641]
[1753456620443,4.547,3645.0,3644.1,1.0355]
[1753456620626,4.547,3645.0,3644.9,2.74355949]
[1753456620824,4.5677,3645.2,3644.9,0.5714]
[1753456621303,3.0,3645.0,3643.9,0.5714]
[1753456621625,3.0,3645.0,3642.9,2.74506544]
[1753456621626,0.0217,3644.8,3643.5,0.5714]
[1753456621800,0.0217,3644.1,3643.5,2.74460419]
[1753456622003,0.0217,3644.1,3643.8,2.74435063]
[1753456622205,0.0217,3644.5,3643.6,1.0355]
[1753456622422,0.0217,3644.5,3643.7,0.8315]
[1753456622640,0.0217,3644.5,3643.9,2.74426396]
[1753456622801,0.0217,3644.5,3644.2,2.74402345]
[1753456623134,0.0217,3644.5,3644.1,2.74413389]
[1753456623643,0.1368,3644.4,3644.2,0.5714]
[1753456623790,0.1368,3644.4,3643.9,3.45329531]
[1753456624134,0.1368,3644.4,3644.0,3.77973368]
[1753456624438,0.1368,3644.4,3644.1,2.74415386]
[1753456624640,0.1368,3644.4,3644.2,2.74406264]
[1753456624792,4.544,3644.6,3644.3,1.0355]
[1753456624992,4.544,3644.6,3644.3,0.5714]
[1753456625235,4.544,3644.6,3644.3,3.31538893]
[1753456625469,4.544,3644.6,3643.6,0.5714]
[1753456625470,3.02748477,3644.5,3643.6,0.5714]
[1753456625739,3.02748477,3644.5,3643.3,0.5714]
[1753456625740,2.74436191,3643.9,3643.3,0.5714]
[1753456625890,4.544,3643.8,3643.3,3.31616224]
[1753456626093,0.04918477,3643.7,3643.1,2.74485213]
[1753456626298,0.0217,3643.7,3643.3,2.74474132]
[1753456626597,0.0217,3643.7,3643.2,0.5498]
[1753456626802,4.544,3644.2,3643.3,2.772212]
[1753456627033,4.544,3644.2,3643.4,0.9851]
[1753456627230,4.544,3644.2,3643.7,2.7444114]
[1753456627545,4.543,3644.1,3643.7,2.7444114]
[1753456627698,4.543,3644.1,3643.5,2.74456473]
[1753456627897,0.02748477,3644.0,3643.4,0.5498]
[1753456628094,2.77172859,3644.0,3643.2,0.4353]
[1753456628319,0.02748477,3644.0,3643.0,0.5498]
[1753456628519,2.74424399,3644.0,3643.1,3.18021504]
[1753456628721,0.56138047,3643.9,3643.2,0.5498]
[1753456629041,0.56138047,3643.9,3643.3,2.74470193]
[1753456629240,0.56138047,3643.9,3643.1,3.18017411]
[1753456629241,4.543,3643.8,3643.1,0.9851]
[1753456629712,0.02748477,3643.7,3643.2,2.74482384]
[1753456629912,0.02748477,3643.7,3643.2,0.5498]
[1753456630101,4.543,3643.8,3643.3,3.29455382]
[1753456630302,5.32786768,3643.8,3643.4,0.5498]
[1753456630634,5.32786768,3643.8,3642.6,2.74524086]
[1753456630635,2.74483035,3643.3,3642.6,3.2950787]
[1753456630958,2.74491797,3643.1,3642.6,0.5498]
[1753456631234,0.0217,3642.9,3642.2,0.5498]
[1753456631530,4.542,3642.8,3642.4,2.74543724]
[1753456631722,4.542,3642.8,3642.4,0.54347236]
[1753456632103,4.542,3642.8,3642.4,3.28890525]
[1753456632316,4.542,3642.8,3642.4,0.54347236]
[1753456632722,3.34213056,3648.0,3641.6,3.0]
[1753456632723,0.27471773,3645.6,3643.6,0.8127]
[1753456632924,0.0217,3643.9,3642.7,0.7762]
[1753456633149,0.0217,3643.9,3642.4,0.4353]
[1753456633150,2.74470335,3643.4,3642.4,0.4353]
[1753456633343,2.77226328,3643.3,3642.4,3.18073812]
[1753456633556,2.76669285,3643.0,3641.8,0.4353]
[1753456633761,2.74516449,3642.8,3642.1,2.74565914]
[1753456634051,2.74516449,3642.8,3641.8,0.9851]
[1753456634052,0.02748477,3642.7,3641.8,0.5498]
[1753456634289,0.0217,3642.4,3641.5,0.001]
[1753456634554,2.77302071,3642.3,3641.6,2.74598698]
[1753456634721,0.1376,3641.8,3641.5,0.001]
[1753456635124,0.1376,3641.8,3641.6,0.9851]
[1753456635346,4.542,3641.7,3641.6,2.74604569]
[1753456635734,4.542,3641.7,3641.6,0.1376]
[1753456635954,4.542,3641.7,3641.5,2.74706966]
[1753456636255,4.542,3641.7,3641.6,3.29584569]
[1753456637554,0.1376,3642.0,3641.8,2.74583011]
[1753456637779,4.542,3641.9,3641.5,0.1386]
[1753456637929,4.542,3641.9,3641.7,2.7459652]
[1753456638238,0.1376,3642.0,3641.9,2.74581948]
[1753456638434,4.542,3642.0,3641.8,3.73099488]
[1753456638673,4.542,3642.0,3641.5,0.001]
[1753456638674,0.02748477,3641.9,3641.5,0.001]
[1753456638840,2.77330425,3641.9,3641.5,0.001]
[1753456639030,3.02748477,3641.9,3641.5,0.001]
[1753456639232,3.0,3641.9,3641.5,0.001]
[1753456639430,4.542,3641.8,3641.5,0.001]
[1753456639661,4.542,3641.7,3641.5,2.74710292]
[1753456639970,4.542,3641.7,3641.5,0.001]
[1753456640524,0.0217,3642.4,3641.6,0.9851]
[1753456640752,0.0217,3642.4,3641.7,0.5498]
[1753456640978,4.56948477,3642.3,3641.5,0.001]
[1753456641154,3.0,3642.0,3641.5,0.001]
[1753456641364,6.20478507,3642.2,3641.5,0.001]
[1753456641600,3.45911848,3642.2,3641.6,3.29579528]
[1753456641760,3.0,3642.0,3641.6,0.5498]
[1753456642282,2.74575483,3642.0,3641.5,0.001]
[1753456642472,3.45911848,3642.2,3641.5,2.74711221]
[1753456642473,0.92048733,3641.9,3641.5,2.74711221]
[1753456642662,4.542,3641.8,3641.5,2.74711221]
[1753456642863,4.542,3641.8,3641.5,0.001]
[1753456643551,4.542,3641.8,3641.5,2.74711383]
[1753456643749,4.542,3641.7,3641.5,0.001]
[1753456643954,4.542,3641.8,3641.7,2.74597028]
[1753456644261,4.542,3642.1,3641.7,0.9851]
[1753456644469,7.04,3643.6,3642.6,2.74529182]
[1753456644786,4.542,3642.7,3642.6,3.73039182]
[1753456645093,4.542,3642.7,3642.1,2.74563798]
[1753456645293,0.48168477,3642.6,3642.1,2.74563798]
[1753456645500,0.48168477,3642.6,3642.0,2.74573285]
[1753456645717,0.48168477,3642.6,3641.8,2.74589125]
[1753456645718,2.74560756,3642.2,3641.5,2.74706956]
[1753456645934,4.541,3642.1,3641.5,0.001]
[1753456646136,2.76774569,3641.6,3641.5,0.001]
[1753456646431,7.33623046,3641.6,3641.5,0.001]
[1753456646587,8.46304569,3641.6,3641.5,0.001]
[1753456647028,11.46304569,3641.6,3641.5,0.001]
[1753456648818,11.60064569,3641.6,3641.5,0.001]
[1753456649022,12.45049076,3641.6,3641.5,0.001]
[1753456649515,7.30519076,3641.6,3641.5,0.001]
[1753456649715,7.7003,3641.6,3641.5,0.001]
[1753456650016,0.1593,3641.6,3641.5,0.001]
[1753456650217,0.0217,3642.2,3641.5,0.9861]
[1753456650424,4.541,3642.1,3641.6,3.29581343]
[1753456650621,4.541,3642.1,3641.7,0.9851]
[1753456650825,0.02748477,3642.0,3641.5,0.001]
[1753456650991,8.67454263,3642.1,3641.5,0.001]
[1753456651184,8.67454263,3642.1,3641.5,0.5508]
[1753456651388,5.92885103,3642.1,3641.5,0.001]
[1753456651589,3.29604569,3641.6,3641.5,0.001]
[1753456651943,8.23757298,3641.6,3641.5,0.001]
[1753456652083,8.21008821,3641.6,3641.5,0.001]
[1753456652285,3.3175943,3641.9,3641.5,0.5508]
[1753456652513,4.541,3641.8,3641.5,0.5508]
[1753456652715,7.28692284,3641.8,3641.5,0.5508]
[1753456652899,2.74604569,3641.6,3641.5,0.001]
[1753456653109,0.02748477,3641.7,3641.5,0.001]
[1753456653324,4.541,3641.6,3641.5,3.73216721]
[1753456653954,4.541,3641.6,3641.5,0.9861]
[1753456654105,4.541,3641.6,3641.5,3.7322211]
[1753456654313,4.541,3642.0,3641.9,3.5439998]
[1753456654615,4.541,3642.0,3641.9,0.9851]
[1753456654832,4.541,3642.0,3641.9,3.73091717]
[1753456655128,6.6157,3643.2,3641.9,1.35819172]
[1753456655333,4.541,3643.1,3642.7,2.74520736]
[1753456655640,4.56848477,3643.0,3642.6,2.74526525]
[1753456655848,4.541,3642.9,3642.8,2.7451411]
[1753456656048,4.541,3642.9,3642.8,0.5498]
[1753456656250,4.541,3642.9,3642.8,2.7451411]
[1753456656548,4.541,3642.9,3642.8,0.5061]
[1753456656723,4.541,3642.9,3642.8,3.2512411]
[1753456656942,4.54,3642.9,3642.8,0.5061]
[1753456657124,4.54,3642.9,3642.8,3.2512411]
[1753456657332,4.54,3642.9,3642.5,2.74536015]